{"text_format":"1","workbook":"xlsx","n_sheets":11,"sheets":["Лист1","Лист2","Лист3","Лист4","Лист5","Лист6","Лист7","Лист8","Лист9","Лист10","Лист11"],"not_rendered":{"charts":0,"images":0,"macros":1,"external_links":0,"defined_names":0,"comments":0,"pivot_tables":0},"unopened":[],"bounds":{"document_bytes":16777216,"sheet_cells":100000,"rows_first":2000,"rows_last":500,"rows_between":2000,"halvings":0,"cell_chars":16384,"cell_head_chars":4096},"cells_cut":0,"cells_raw":0,"read":"whole","date_system":"1900"}

{"sheet":"Лист1","index":0,"n_rows":34,"n_cols":4,"rows_kept":34,"cut":false,"hidden":false,"merged":[[33,3,34,5],[12,2,13,6],[20,0,22,7],[3,2,3,6],[9,2,9,6],[24,0,25,7],[27,0,28,7]]}
[]
[]
[]
[null,null,"Информатика"]
[]
[]
[]
[]
[]
[null,null,"Тест по теме: "]
[]
[]
[null,null,"Архитектура компьютеров и компьютерных сетей"]
[]
[]
[]
[]
[]
[]
[]
["Внимательно прочитайте вопрос. Выбрав правильный, по вашему мнению, ответ, запишите его номер в ячейке \"Ответ\"."]
[]
[]
[]
["Переходите от страницы к странице кликом по кнопке \"Дальше\"."]
[]
[]
["Если что-то непонятно - обращайтесь к учителю."]
[]
[]
[]
[]
[]
[null,null,null,"НАЧАТЬ"]

{"sheet":"Лист2","index":1,"n_rows":41,"n_cols":4,"rows_kept":41,"cut":false,"hidden":false,"merged":[[24,0,25,8],[4,0,6,8]]}
[]
["Вопрос 1. "]
[]
[]
["Универсальное устройство для автоматизированного выполнения информационных процессов называется…"]
[]
[]
["1. Модем"]
["2. Процессор"]
["3. Персональный компьютер"]
["4. Принтер"]
[]
[]
[]
[null,null,"Ответ:"]
[]
[]
[]
[]
[]
[]
["Вопрос 2."]
[]
[]
["Устройство для вывода на бумагу, плёнку чертежей, графиков большого формата называется…"]
[]
[]
["1. Принтер"]
["2. Плоттер"]
["3. Монитор"]
["4. Сканер"]
[]
[]
[]
[null,null,"Ответ:"]
[]
[]
[]
[]
[]
[null,null,null,"Дальше"]

{"sheet":"Лист3","index":2,"n_rows":40,"n_cols":4,"rows_kept":40,"cut":false,"hidden":false,"merged":[[4,0,4,7]]}
[]
["Вопрос 3. "]
[]
[]
["Устройством ввода информации является…"]
[]
["1. Клавиатура"]
["2. Модем"]
["3. Монитор"]
["4. Дисковод"]
[]
[]
[]
[null,null,"Ответ:"]
[]
[]
[]
[]
[]
[]
[]
["Вопрос 4."]
[]
[]
["Мониторов такого вида не существует…"]
[]
["1. Монохромных"]
["2.  С электронно-лучевой трубкой"]
["3. Оптоволоконных"]
["4. Жидкокристаллических"]
[]
[]
[]
[null,null,"Ответ:"]
[]
[]
[]
[]
[]
[null,null,null,"Дальше"]

{"sheet":"Лист4","index":3,"n_rows":40,"n_cols":4,"rows_kept":40,"cut":false,"hidden":false,"merged":[]}
[]
["Вопрос 5."]
[]
[]
["Устройство для ввода рисунков от руки непосредственно в компьютер называется…"]
[]
["1. Мышь"]
["2. Графический планшет (дигитайзер)"]
["3. Сканер"]
["4. Плоттер"]
[]
[]
[]
[null,null,"Ответ:"]
[]
[]
[]
[]
[]
[]
[]
["Вопрос 6."]
[]
[]
["Считывание гибких магнитных дисков производится с помощью…"]
[]
["1. Магнитной головки"]
["2. Дисковода"]
["3. Лазерного луча"]
["4. Программного обеспечения"]
[]
[]
[]
[null,null,"Ответ:"]
[]
[]
[]
[]
[]
[null,null,null,"Дальше"]

{"sheet":"Лист5","index":4,"n_rows":40,"n_cols":4,"rows_kept":40,"cut":false,"hidden":false,"merged":[]}
[]
["Вопрос 7."]
[]
[]
["Первую вычислительную машину изобрел…"]
[]
["1. Исаак Ньютон"]
["2. Чарльз Беббидж"]
["3. Готфрид Лейбниц"]
["4. Христиан Гюйгенс"]
[]
[]
[]
[null,null,"Ответ:"]
[]
[]
[]
[]
[]
[]
[]
["Вопрос 8."]
[]
[]
["Модуль ОС, предназначенный для обслуживания ПК, это…"]
[]
["1. Процессор"]
["2. Драйвера"]
["3. Утилиты"]
["4. Оперативная память"]
[]
[]
[]
[null,null,"Ответ:"]
[]
[]
[]
[]
[]
[null,null,null,"Дальше"]

{"sheet":"Лист6","index":5,"n_rows":40,"n_cols":4,"rows_kept":40,"cut":false,"hidden":false,"merged":[]}
[]
["Вопрос 9."]
[]
[]
["Устройством ввода не является..."]
[]
["1. Сканер"]
["2. Клавиатура"]
["3. Принтер"]
["4. Мышь"]
[]
[]
[]
[null,null,"Ответ: "]
[]
[]
[]
[]
[]
[]
[]
["Вопрос 10."]
[]
[]
["Утилита - это…"]
[]
["1. Операционная система"]
["2. Прикладная программа"]
["3. Сервисная программа"]
["4. Базовая система ввода-вывода"]
[]
[]
[]
[null,null,"Ответ:"]
[]
[]
[]
[]
[]
[null,null,null,"Дальше"]

{"sheet":"Лист7","index":6,"n_rows":40,"n_cols":4,"rows_kept":40,"cut":false,"hidden":false,"merged":[]}
[]
["Вопрос 11."]
[]
[]
["Классическая архитектура компьютера названа в честь…"]
[]
["1. Билла Гейтса"]
["2. Джона фон Неймана"]
["3. Чарльза Бэббиджа"]
["4. Блеза Паскаля"]
[]
[]
[]
[null,null,"Ответ:"]
[]
[]
[]
[]
[]
[]
[]
["Вопрос 12."]
[]
[]
["Диалоговое окно предназначено для …"]
[]
["1. Просмотра содержимого папки"]
["2. Запроса у пользователя некоторых параметров"]
["3. Работы приложения"]
["4. Работы с файлами"]
[]
[]
[]
[null,null,"Ответ:"]
[]
[]
[]
[]
[]
[null,null,null,"Дальше"]

{"sheet":"Лист8","index":7,"n_rows":40,"n_cols":4,"rows_kept":40,"cut":false,"hidden":false,"merged":[]}
[]
["Вопрос 13."]
[]
[]
["Архитектура компьютера - это…"]
[]
["1. Техническое описание деталей устройства компьютера"]
["2. Описание устройств для ввода-вывода"]
["3. Описание программного обеспечения для работы компьютера"]
["4. Список устройств, подключенных к компьютеру"]
[]
[]
[]
[null,null,"Ответ:"]
[]
[]
[]
[]
[]
[]
[]
["Вопрос 14."]
[]
[]
["Структурная схема ЭВМ в общем случае включает в себя:"]
[]
["1. Процессор, материнская плата, устройства ввода, вывода "]
["2. Процессор, жесткий диск, ОЗУ, ВЗУ, мышь, клавиатуру"]
["3. Жесткий диск, ОЗУ, ВЗУ, устройства ввода, устройства вывода"]
["4. Процессор, ОЗУ, ВЗУ, устройства ввода, устройства вывода"]
[]
[]
[]
[null,null,"Ответ:"]
[]
[]
[]
[]
[]
[null,null,null,"Дальше"]

{"sheet":"Лист9","index":8,"n_rows":40,"n_cols":4,"rows_kept":40,"cut":false,"hidden":false,"merged":[]}
[]
["Вопрос 15."]
[]
[]
["Оперативная память необходима…"]
[]
["1. Для долговременного хранения данных, с которыми проводятся операции"]
["2. Для быстрой загрузки нужного файла"]
["3. Для передачи данных работающей программе"]
["4. Для хранения исполняемых  в данный момент данных"]
[]
[]
[]
[null,null,"Ответ:"]
[]
[]
[]
[]
[]
[]
[]
["Вопрос 16."]
[]
[]
["\"Мозг\" компьютера - это…"]
[]
["1. Системный блок"]
["2. Мышь"]
["3. Оперативная память"]
["4. Микропроцессор"]
[]
[]
[]
[null,null,"Ответ:"]
[]
[]
[]
[]
[]
[null,null,null,"Дальше"]

{"sheet":"Лист10","index":9,"n_rows":24,"n_cols":7,"rows_kept":24,"cut":false,"hidden":true,"merged":[[26,3,26,4],[18,4,18,5],[13,2,13,3],[14,2,14,3],[15,2,15,3],[16,2,16,3],[17,2,17,3],[18,2,18,3],[17,4,17,5],[16,4,16,5],[23,3,23,4],[12,4,12,5],[6,4,6,5],[7,2,7,3],[8,2,8,3],[9,2,9,3],[10,2,10,3],[12,2,12,3],[2,2,2,3],[3,2,3,3],[4,2,4,3],[7,4,7,5],[5,4,5,5],[5,2,5,3],[6,2,6,3],[0,0,0,7],[2,4,2,5],[3,4,3,5],[4,4,4,5],[11,2,11,3],[15,4,15,5],[8,4,8,5],[9,4,9,5],[10,4,10,5],[11,4,11,5],[13,4,13,5],[14,4,14,5]]}
["Результаты теста"]
[]
[null,null,"№ вопроса",null,"Результат",null,"Баллы"]
[null,null,1,null,{"$f":"IF(Лист2!D15=3,\"верно\",\"ошибка\")","v":"ошибка"},null,{"$f":"IF(E4=\"верно\",1,0)","v":0}]
[null,null,2,null,{"$f":"IF(Лист2!D35=2,\"верно\",\"ошибка\")","v":"ошибка"},null,{"$f":"IF(E5=\"верно\",1,0)","v":0}]
[null,null,3,null,{"$f":"IF(Лист3!D14=1,\"верно\",\"ошибка\")","v":"ошибка"},null,0]
[null,null,4,null,{"$f":"IF(Лист3!D34=3,\"верно\",\"ошибка\")","v":"ошибка"},null,0]
[null,null,5,null,{"$f":"IF(Лист4!D14=2,\"верно\",\"ошибка\")","v":"ошибка"},null,0]
[null,null,6,null,{"$f":"IF(Лист4!D34=1,\"верно\",\"ошибка\")","v":"ошибка"},null,0]
[null,null,7,null,{"$f":"IF(Лист5!D14=2,\"верно\",\"ошибка\")","v":"ошибка"},null,0]
[null,null,8,null,{"$f":"IF(Лист5!D34=3,\"верно\",\"ошибка\")","v":"ошибка"},null,0]
[null,null,9,null,{"$f":"IF(Лист6!D14=3,\"верно\",\"ошибка\")","v":"ошибка"},null,0]
[null,null,10,null,{"$f":"IF(Лист6!D34=3,\"верно\",\"ошибка\")","v":"ошибка"},null,0]
[null,null,11,null,{"$f":"IF(Лист7!D14=2,\"верно\",\"ошибка\")","v":"ошибка"},null,0]
[null,null,12,null,{"$f":"IF(Лист7!D34=2,\"верно\",\"ошибка\")","v":"ошибка"},null,{"$f":"IF(E15=\"верно\",1,0)","v":0}]
[null,null,13,null,{"$f":"IF(Лист8!D14=1,\"верно\",\"ошибка\")","v":"ошибка"},null,0]
[null,null,14,null,{"$f":"IF(Лист8!D34=4,\"верно\",\"ошибка\")","v":"ошибка"},null,0]
[null,null,15,null,{"$f":"IF(Лист9!D14=4,\"верно\",\"ошибка\")","v":"ошибка"},null,0]
[null,null,16,null,{"$f":"IF(Лист9!D34=4,\"верно\",\"ошибка\")","v":"ошибка"},null,0]
[]
[null,"Верных ответов: ",null,{"$f":"SUM(G4:G19)","v":0},null,"из 16"]
[null,null,null,{"$f":"PRODUCT(D21,0.3125)","v":0},{"$f":"SUM(D22,0.2)","v":0.2}]
[]
[null,"Итоговая оценка:",null,{"$f":"ROUND(E22,0)","v":0}]

{"sheet":"Лист11","index":10,"n_rows":15,"n_cols":17,"rows_kept":15,"cut":false,"hidden":false,"merged":[[3,3,3,12],[14,2,17,15],[29,6,29,9]]}
[]
[]
[]
[null,null,null,"Таблица введённых номеров ответов"]
[]
[]
[]
[]
["№ вопроса",1,2,3,4,5,6,7,8,9,10,11,12,13,14,15,16]
["№ ответа",{"$f":"SUM(Лист2!D15,0)","v":0},{"$f":"SUM(Лист2!D35,0)","v":0},{"$f":"SUM(Лист3!D14,0)","v":0},{"$f":"SUM(Лист3!D34,0)","v":0},{"$f":"SUM(Лист4!D14,0)","v":0},{"$f":"SUM(Лист4!D34,0)","v":0},{"$f":"SUM(Лист5!D14,0)","v":0},{"$f":"SUM(Лист5!D34,0)","v":0},{"$f":"SUM(Лист6!D14,0)","v":0},{"$f":"SUM(Лист6!D34,0)","v":0},{"$f":"SUM(Лист7!D14,0)","v":0},{"$f":"SUM(Лист7!D34,0)","v":0},{"$f":"SUM(Лист8!D14,0)","v":0},{"$f":"SUM(Лист8!D34,0)","v":0},{"$f":"SUM(Лист9!D14,0)","v":0},{"$f":"SUM(Лист9!D34,0)","v":0}]
[]
[]
[]
[]
[null,null,"! Если нужно - проверьте ещё раз. После перехода к результатам тестирования изменение варианта ответа невозможно."]